[Event "Titled Tuesday Blitz May 31 Late 2022"]
[White "Wieczorek, Oskar"]
[Black "Shuvalova, Polina"]
[WhiteFideId "1133950"]
[BlackFideId "24171760"]
[WhiteElo "2330"]
[BlackElo "2355"]
[Result "1/2-1/2"]
[Round "05"]
[TimeControl "180+1"]
[Date "2022.05.31"]
[WhiteClock "0:00:11"]
[BlackClock "0:00:14"]

1. e4 {[%clk 0:03:00]}  c5 {[%clk 0:02:49]} 2. Nf3 {[%clk 0:03:01]}  d6 {[%clk 0:02:47]} 3. d4 {[%clk 0:03:01]}  cxd4 {[%clk 0:02:46]} 4. Nxd4 {[%clk 0:03:01]}  Nf6 {[%clk 0:02:44]} 5. Nc3 {[%clk 0:03:02]}  a6 {[%clk 0:02:44]} 6. Be2 {[%clk 0:03:01]}  e5 {[%clk 0:02:44]} 7. Nf3 {[%clk 0:03:02]}  Be7 {[%clk 0:02:44]} 8. Bg5 {[%clk 0:03:02]}  Be6 {[%clk 0:02:43]} 9. Bxf6 {[%clk 0:03:03]}  Bxf6 {[%clk 0:02:43]} 10. O-O {[%clk 0:03:04]}  O-O {[%clk 0:02:41]} 11. Nd5 {[%clk 0:03:03]}  Nd7 {[%clk 0:02:40]} 12. Bc4 {[%clk 0:03:01]}  Rc8 {[%clk 0:02:30]} 13. Qe2 {[%clk 0:02:58]}  b5 {[%clk 0:02:29]} 14. Bb3 {[%clk 0:02:55]}  Nc5 {[%clk 0:02:29]} 15. Rfd1 {[%clk 0:02:55]}  Bg5 {[%clk 0:01:47]} 16. c3 {[%clk 0:02:45]}  Bh6 {[%clk 0:01:42]} 17. Bc2 {[%clk 0:02:17]}  Rb8 {[%clk 0:01:35]} 18. b4 {[%clk 0:02:11]}  Nd7 {[%clk 0:01:33]} 19. a4 {[%clk 0:02:06]}  Bxd5 {[%clk 0:01:12]} 20. Rxd5 {[%clk 0:02:02]}  Nb6 {[%clk 0:01:13]} 21. Rdd1 {[%clk 0:02:00]}  bxa4 {[%clk 0:01:07]} 22. Bxa4 {[%clk 0:01:58]}  Qc7 {[%clk 0:01:05]} 23. Qd3 {[%clk 0:01:32]}  Rfc8 {[%clk 0:00:40]} 24. Qxd6 {[%clk 0:01:16]}  Qxd6 {[%clk 0:00:39]} 25. Rxd6 {[%clk 0:01:15]}  Nxa4 {[%clk 0:00:39]} 26. Rxa4 {[%clk 0:01:14]}  Rxc3 {[%clk 0:00:40]} 27. h4 {[%clk 0:00:38]}  Bf4 {[%clk 0:00:35]} 28. g3 {[%clk 0:00:22]}  Rxf3 {[%clk 0:00:28]} 29. Kg2 {[%clk 0:00:21]}  Rb3 {[%clk 0:00:20]} 30. gxf4 {[%clk 0:00:21]}  exf4 {[%clk 0:00:20]} 31. Rdxa6 {[%clk 0:00:21]}  h6 {[%clk 0:00:18]} 32. Ra8 {[%clk 0:00:18]}  Rxb4 {[%clk 0:00:14]} 33. Rxb8+ {[%clk 0:00:13]}  Rxb8 {[%clk 0:00:14]} 34. e5 {[%clk 0:00:14]}  g5 {[%clk 0:00:13]} 35. hxg5 {[%clk 0:00:15]}  hxg5 {[%clk 0:00:14]} 36. Kf3 {[%clk 0:00:13]}  Re8 {[%clk 0:00:14]} 37. Ke4 {[%clk 0:00:05]}  Re6 {[%clk 0:00:11]} 38. Kf5 {[%clk 0:00:05]}  Rg6 {[%clk 0:00:12]} 39. Ra7 {[%clk 0:00:04]}  Kg7 {[%clk 0:00:12]} 40. e6 {[%clk 0:00:05]}  Rxe6 {[%clk 0:00:11]} 41. Kxg5 {[%clk 0:00:05]}  Re2 {[%clk 0:00:11]} 42. Kxf4 {[%clk 0:00:05]}  Rxf2+ {[%clk 0:00:12]} 43. Kg3 {[%clk 0:00:06]}  Rf6 {[%clk 0:00:12]} 44. Ra4 {[%clk 0:00:06]}  Rg6+ {[%clk 0:00:13]} 45. Kf3 {[%clk 0:00:06]}  Kf6 {[%clk 0:00:14]} 46. Kf2 {[%clk 0:00:06]}  Ke7 {[%clk 0:00:14]} 47. Ra3 {[%clk 0:00:06]}  Rf6+ {[%clk 0:00:15]} 48. Ke1 {[%clk 0:00:06]}  Rb6 {[%clk 0:00:16]} 49. Kf1 {[%clk 0:00:06]}  Ke6 {[%clk 0:00:16]} 50. Rc3 {[%clk 0:00:07]}  f5 {[%clk 0:00:17]} 51. Ra3 {[%clk 0:00:07]}  Ke5 {[%clk 0:00:17]} 52. Rc3 {[%clk 0:00:08]}  Ke4 {[%clk 0:00:17]} 53. Ra3 {[%clk 0:00:09]}  Rb2 {[%clk 0:00:16]} 54. Rc3 {[%clk 0:00:08]}  Kf4 {[%clk 0:00:16]} 55. Ra3 {[%clk 0:00:09]}  Rc2 {[%clk 0:00:14]} 56. Rb3 {[%clk 0:00:09]}  Rc4 {[%clk 0:00:14]} 57. Ra3 {[%clk 0:00:09]}  Rb4 {[%clk 0:00:14]} 58. Rc3 {[%clk 0:00:09]}  Re4 {[%clk 0:00:15]} 59. Ra3 {[%clk 0:00:10]}  Re3 {[%clk 0:00:15]} 60. Ra2 {[%clk 0:00:08]}  Kg3 {[%clk 0:00:14]} 61. Rg2+ {[%clk 0:00:08]}  Kf4 {[%clk 0:00:14]} 62. Ra2 {[%clk 0:00:08]}  Ke4 {[%clk 0:00:13]} 63. Kf2 {[%clk 0:00:08]}  Rf3+ {[%clk 0:00:11]} 64. Ke2 {[%clk 0:00:08]}  Rb3 {[%clk 0:00:12]} 65. Ra4+ {[%clk 0:00:08]}  Ke5 {[%clk 0:00:12]} 66. Kf2 {[%clk 0:00:09]}  Kf6 {[%clk 0:00:11]} 67. Kg2 {[%clk 0:00:09]}  Kg5 {[%clk 0:00:12]} 68. Kf2 {[%clk 0:00:09]}  Rb2+ {[%clk 0:00:13]} 69. Kf3 {[%clk 0:00:10]}  Rb3+ {[%clk 0:00:14]} 70. Kf2 {[%clk 0:00:10]}  Kh5 {[%clk 0:00:14]} 71. Kg2 {[%clk 0:00:10]}  Kg5 {[%clk 0:00:14]} 72. Kf2 {[%clk 0:00:11]} 1/2-1/2


[Site "https://www.chess.com"]

[Event "Titled Tuesday Blitz May 31 Late 2022"]
[White "Xiong, Jeffery"]
[Black "Bazeev, German"]
[WhiteFideId "2047640"]
[BlackFideId "24119350"]
[WhiteElo "2727"]
[BlackElo "2493"]
[Result "1-0"]
[Round "05"]
[TimeControl "180+1"]
[Date "2022.05.31"]
[WhiteClock "0:00:07"]
[BlackClock "0:00:07"]

1. e4 {[%clk 0:02:51]}  c5 {[%clk 0:02:56]} 2. Nf3 {[%clk 0:02:51]}  d6 {[%clk 0:02:56]} 3. Nc3 {[%clk 0:02:50]}  Nf6 {[%clk 0:02:54]} 4. d4 {[%clk 0:02:51]}  cxd4 {[%clk 0:02:55]} 5. Qxd4 {[%clk 0:02:51]}  a6 {[%clk 0:02:49]} 6. e5 {[%clk 0:02:48]}  Nc6 {[%clk 0:02:49]} 7. Qa4 {[%clk 0:02:49]}  dxe5 {[%clk 0:02:42]} 8. Nxe5 {[%clk 0:02:50]}  Bd7 {[%clk 0:02:43]} 9. Nxd7 {[%clk 0:02:50]}  Qxd7 {[%clk 0:02:43]} 10. Be3 {[%clk 0:02:51]}  e6 {[%clk 0:02:41]} 11. Rd1 {[%clk 0:02:30]}  Qc7 {[%clk 0:02:32]} 12. Be2 {[%clk 0:02:19]}  Be7 {[%clk 0:02:26]} 13. O-O {[%clk 0:02:18]}  O-O {[%clk 0:02:26]} 14. Bf4 {[%clk 0:02:04]}  Qb6 {[%clk 0:02:25]} 15. Ne4 {[%clk 0:01:59]}  Nd5 {[%clk 0:02:18]} 16. Bc1 {[%clk 0:01:59]}  Rfd8 {[%clk 0:02:11]} 17. c3 {[%clk 0:01:58]}  Qc7 {[%clk 0:02:01]} 18. Qc2 {[%clk 0:01:56]}  Rac8 {[%clk 0:01:59]} 19. Qb1 {[%clk 0:01:54]}  Nf6 {[%clk 0:01:54]} 20. Nxf6+ {[%clk 0:01:47]}  Bxf6 {[%clk 0:01:55]} 21. Qe4 {[%clk 0:01:47]}  Rxd1 {[%clk 0:01:52]} 22. Rxd1 {[%clk 0:01:48]}  Rd8 {[%clk 0:01:53]} 23. Rxd8+ {[%clk 0:01:44]}  Qxd8 {[%clk 0:01:54]} 24. g3 {[%clk 0:01:44]}  Qd5 {[%clk 0:01:47]} 25. Bd3 {[%clk 0:01:38]}  Ne5 {[%clk 0:01:43]} 26. Qxh7+ {[%clk 0:01:33]}  Kf8 {[%clk 0:01:43]} 27. Be2 {[%clk 0:01:32]}  Nf3+ {[%clk 0:01:41]} 28. Bxf3 {[%clk 0:01:32]}  Qxf3 {[%clk 0:01:41]} 29. Be3 {[%clk 0:01:26]}  Qd1+ {[%clk 0:01:39]} 30. Kg2 {[%clk 0:01:26]}  Qd5+ {[%clk 0:01:40]} 31. f3 {[%clk 0:01:26]}  Qxa2 {[%clk 0:01:40]} 32. Bc5+ {[%clk 0:01:26]}  Ke8 {[%clk 0:01:40]} 33. Qg8+ {[%clk 0:01:26]}  Kd7 {[%clk 0:01:40]} 34. Qxf7+ {[%clk 0:01:27]}  Kc6 {[%clk 0:01:41]} 35. Bf2 {[%clk 0:01:27]}  Qxb2 {[%clk 0:01:39]} 36. Qxe6+ {[%clk 0:01:25]}  Kc7 {[%clk 0:01:40]} 37. Qf7+ {[%clk 0:01:14]}  Kc8 {[%clk 0:01:37]} 38. Qc4+ {[%clk 0:01:11]}  Kd7 {[%clk 0:01:32]} 39. Qd5+ {[%clk 0:01:10]}  Kc7 {[%clk 0:01:28]} 40. c4 {[%clk 0:01:11]}  Qe5 {[%clk 0:01:22]} 41. Qd3 {[%clk 0:01:06]}  Qc3 {[%clk 0:01:17]} 42. Qe4 {[%clk 0:01:00]}  a5 {[%clk 0:01:15]} 43. g4 {[%clk 0:00:59]}  Qd2 {[%clk 0:01:04]} 44. Kf1 {[%clk 0:00:51]}  Qd1+ {[%clk 0:01:02]} 45. Kg2 {[%clk 0:00:52]}  Qd2 {[%clk 0:01:02]} 46. Kf1 {[%clk 0:00:33]}  Qd1+ {[%clk 0:01:02]} 47. Qe1 {[%clk 0:00:33]}  Qxe1+ {[%clk 0:00:40]} 48. Bxe1 {[%clk 0:00:34]}  a4 {[%clk 0:00:40]} 49. Bb4 {[%clk 0:00:35]}  b5 {[%clk 0:00:40]} 50. cxb5 {[%clk 0:00:33]}  Kb6 {[%clk 0:00:41]} 51. f4 {[%clk 0:00:25]}  Kxb5 {[%clk 0:00:39]} 52. Bf8 {[%clk 0:00:26]}  g6 {[%clk 0:00:33]} 53. Ke2 {[%clk 0:00:24]}  Kc4 {[%clk 0:00:33]} 54. g5 {[%clk 0:00:20]}  Bc3 {[%clk 0:00:32]} 55. h4 {[%clk 0:00:19]}  Kb3 {[%clk 0:00:32]} 56. Kf3 {[%clk 0:00:13]}  Bb4 {[%clk 0:00:32]} 57. Bxb4 {[%clk 0:00:07]}  Kxb4 {[%clk 0:00:32]} 58. h5 {[%clk 0:00:06]}  gxh5 {[%clk 0:00:29]} 59. g6 {[%clk 0:00:07]}  a3 {[%clk 0:00:29]} 60. g7 {[%clk 0:00:08]}  a2 {[%clk 0:00:30]} 61. g8=Q {[%clk 0:00:09]}  a1=Q {[%clk 0:00:30]} 62. Qf8+ {[%clk 0:00:06]}  Kc4 {[%clk 0:00:30]} 63. Qf7+ {[%clk 0:00:06]}  Kc5 {[%clk 0:00:29]} 64. Qxh5+ {[%clk 0:00:06]}  Kd6 {[%clk 0:00:28]} 65. Qe8 {[%clk 0:00:02]}  Qh1+ {[%clk 0:00:26]} 66. Kg3 {[%clk 0:00:03]}  Qg1+ {[%clk 0:00:26]} 67. Kh4 {[%clk 0:00:03]}  Qg7 {[%clk 0:00:24]} 68. Kh5 {[%clk 0:00:03]}  Qh7+ {[%clk 0:00:20]} 69. Kg5 {[%clk 0:00:03]}  Qh2 {[%clk 0:00:16]} 70. Qe5+ {[%clk 0:00:03]}  Kd7 {[%clk 0:00:16]} 71. Kg6 {[%clk 0:00:03]}  Qg2+ {[%clk 0:00:13]} 72. Qg5 {[%clk 0:00:04]}  Qf2 {[%clk 0:00:12]} 73. Qf5+ {[%clk 0:00:04]}  Ke7 {[%clk 0:00:12]} 74. Qf7+ {[%clk 0:00:04]}  Kd6 {[%clk 0:00:13]} 75. Qf6+ {[%clk 0:00:05]}  Kd7 {[%clk 0:00:12]} 76. Qf7+ {[%clk 0:00:06]}  Kd6 {[%clk 0:00:13]} 77. f5 {[%clk 0:00:05]}  Qg3+ {[%clk 0:00:11]} 78. Kh7 {[%clk 0:00:06]}  Qh4+ {[%clk 0:00:11]} 79. Kg8 {[%clk 0:00:06]}  Qd8+ {[%clk 0:00:07]} 80. Kg7 {[%clk 0:00:06]}  Qd7 {[%clk 0:00:06]} 81. Qxd7+ {[%clk 0:00:06]}  Kxd7 {[%clk 0:00:07]} 82. f6 {[%clk 0:00:07]} 1-0


[Site "https://www.chess.com"]

[Event "Titled Tuesday Blitz May 31 Late 2022"]
[White "Batsiashvili, Nino"]
[Black "Djabri,Massinas"]
[WhiteFideId "13602993"]
[BlackFideId "7905726"]
[WhiteElo "2193"]
[BlackElo "1941"]
[Result "0-1"]
[Round "06"]
[TimeControl "180+1"]
[Date "2022.06.01"]
[WhiteClock "0:00:12"]
[BlackClock "0:00:12"]

1. d4 {[%clk 0:02:56]}  d5 {[%clk 0:03:00]} 2. c4 {[%clk 0:02:56]}  e6 {[%clk 0:03:01]} 3. Nf3 {[%clk 0:02:57]}  Nf6 {[%clk 0:03:00]} 4. Nc3 {[%clk 0:02:57]}  Be7 {[%clk 0:03:01]} 5. Bf4 {[%clk 0:02:57]}  O-O {[%clk 0:03:01]} 6. e3 {[%clk 0:02:58]}  a6 {[%clk 0:03:01]} 7. Rc1 {[%clk 0:02:54]}  dxc4 {[%clk 0:03:01]} 8. Bxc4 {[%clk 0:02:55]}  b5 {[%clk 0:03:02]} 9. Be2 {[%clk 0:02:55]}  Bb7 {[%clk 0:03:02]} 10. Ne5 {[%clk 0:02:56]}  Nbd7 {[%clk 0:03:02]} 11. Bf3 {[%clk 0:02:55]}  Qc8 {[%clk 0:02:52]} 12. Nc6 {[%clk 0:02:52]}  Bxc6 {[%clk 0:02:46]} 13. Bxc6 {[%clk 0:02:51]}  Rb8 {[%clk 0:02:47]} 14. O-O {[%clk 0:02:49]}  Bd6 {[%clk 0:02:47]} 15. Qf3 {[%clk 0:02:48]}  Qd8 {[%clk 0:02:42]} 16. Ne4 {[%clk 0:02:43]}  Nxe4 {[%clk 0:02:41]} 17. Bxe4 {[%clk 0:02:42]}  Qe7 {[%clk 0:02:29]} 18. Rc6 {[%clk 0:02:36]}  e5 {[%clk 0:02:23]} 19. Bg3 {[%clk 0:02:15]}  exd4 {[%clk 0:02:23]} 20. exd4 {[%clk 0:02:16]}  Nf6 {[%clk 0:02:13]} 21. Bd3 {[%clk 0:02:10]}  Qd7 {[%clk 0:01:51]} 22. Bh4 {[%clk 0:02:05]}  Nd5 {[%clk 0:01:29]} 23. Rfc1 {[%clk 0:02:03]}  Nb4 {[%clk 0:01:23]} 24. Bf5 {[%clk 0:01:55]}  Qe8 {[%clk 0:01:23]} 25. Qh5 {[%clk 0:01:38]}  h6 {[%clk 0:01:13]} 26. R6c3 {[%clk 0:01:16]}  Nxa2 {[%clk 0:01:12]} 27. Bf6 {[%clk 0:01:04]}  Nxc1 {[%clk 0:01:04]} 28. Rxc1 {[%clk 0:01:03]}  Bf4 {[%clk 0:00:56]} 29. Qg4 {[%clk 0:00:55]}  Bg5 {[%clk 0:00:49]} 30. Bxg5 {[%clk 0:00:54]}  hxg5 {[%clk 0:00:50]} 31. Qxg5 {[%clk 0:00:49]}  g6 {[%clk 0:00:40]} 32. h4 {[%clk 0:00:45]}  Rb6 {[%clk 0:00:34]} 33. h5 {[%clk 0:00:40]}  Qd8 {[%clk 0:00:29]} 34. Qg3 {[%clk 0:00:35]}  Qf6 {[%clk 0:00:28]} 35. Bd3 {[%clk 0:00:27]}  Qd6 {[%clk 0:00:22]} 36. Qg4 {[%clk 0:00:21]}  Re8 {[%clk 0:00:16]} 37. hxg6 {[%clk 0:00:19]}  fxg6 {[%clk 0:00:17]} 38. g3 {[%clk 0:00:17]}  Rc6 {[%clk 0:00:11]} 39. Rxc6 {[%clk 0:00:16]}  Qxc6 {[%clk 0:00:12]} 40. Kh2 {[%clk 0:00:10]}  Re1 {[%clk 0:00:12]} 41. Qc8+ {[%clk 0:00:10]}  Kg7 {[%clk 0:00:10]} 42. Kh3 {[%clk 0:00:07]}  Qe6+ {[%clk 0:00:08]} 43. Qxe6 {[%clk 0:00:07]}  Rxe6 {[%clk 0:00:09]} 44. Kg4 {[%clk 0:00:07]}  Rd6 {[%clk 0:00:10]} 45. Bxg6 {[%clk 0:00:07]}  Kxg6 {[%clk 0:00:09]} 46. Kf3 {[%clk 0:00:07]}  Rxd4 {[%clk 0:00:09]} 47. Ke3 {[%clk 0:00:08]}  Rb4 {[%clk 0:00:10]} 48. f4 {[%clk 0:00:09]}  Rxb2 {[%clk 0:00:11]} 49. g4 {[%clk 0:00:10]}  Rb4 {[%clk 0:00:11]} 50. Kf3 {[%clk 0:00:10]}  a5 {[%clk 0:00:11]} 51. Kg3 {[%clk 0:00:11]}  c5 {[%clk 0:00:11]} 52. Kh4 {[%clk 0:00:12]}  a4 {[%clk 0:00:12]} 53. f5+ {[%clk 0:00:12]}  Kf6 {[%clk 0:00:12]} 0-1


[Site "https://www.chess.com"]

[Event "Titled Tuesday Blitz May 31 Late 2022"]
[White "Bettalli, Francesco"]
[Black "Leitao, Rafael"]
[WhiteFideId "2816453"]
[BlackFideId "2101246"]
[WhiteElo "2216"]
[BlackElo "2609"]
[Result "1-0"]
[Round "06"]
[TimeControl "180+1"]
[Date "2022.06.01"]
[WhiteClock "0:00:14"]
[BlackClock "0:00:07"]

1. d4 {[%clk 0:03:00]}  Nf6 {[%clk 0:02:59]} 2. Nc3 {[%clk 0:03:01]}  d5 {[%clk 0:02:59]} 3. Bf4 {[%clk 0:03:01]}  e6 {[%clk 0:02:59]} 4. Nb5 {[%clk 0:02:58]}  Na6 {[%clk 0:02:59]} 5. e3 {[%clk 0:02:57]}  c6 {[%clk 0:02:55]} 6. Nc3 {[%clk 0:02:57]}  Be7 {[%clk 0:02:49]} 7. Nf3 {[%clk 0:02:55]}  O-O {[%clk 0:02:49]} 8. Bxa6 {[%clk 0:02:54]}  bxa6 {[%clk 0:02:48]} 9. O-O {[%clk 0:02:55]}  c5 {[%clk 0:02:47]} 10. Ne5 {[%clk 0:02:48]}  Bb7 {[%clk 0:02:44]} 11. Na4 {[%clk 0:02:43]}  cxd4 {[%clk 0:02:30]} 12. exd4 {[%clk 0:02:44]}  Rc8 {[%clk 0:02:30]} 13. c3 {[%clk 0:02:43]}  a5 {[%clk 0:02:28]} 14. Re1 {[%clk 0:02:41]}  Nd7 {[%clk 0:02:21]} 15. Nd3 {[%clk 0:02:38]}  Ba6 {[%clk 0:02:14]} 16. Rc1 {[%clk 0:02:32]}  Re8 {[%clk 0:02:08]} 17. h3 {[%clk 0:02:03]}  Bb5 {[%clk 0:02:07]} 18. Be3 {[%clk 0:01:58]}  Bd6 {[%clk 0:01:53]} 19. Nac5 {[%clk 0:01:55]}  Nxc5 {[%clk 0:01:53]} 20. Nxc5 {[%clk 0:01:56]}  Bxc5 {[%clk 0:01:49]} 21. dxc5 {[%clk 0:01:57]}  e5 {[%clk 0:01:45]} 22. Qg4 {[%clk 0:01:51]}  Bc6 {[%clk 0:01:40]} 23. Rcd1 {[%clk 0:01:49]}  Qf6 {[%clk 0:01:25]} 24. b4 {[%clk 0:01:45]}  axb4 {[%clk 0:01:24]} 25. cxb4 {[%clk 0:01:45]}  d4 {[%clk 0:01:24]} 26. Bc1 {[%clk 0:01:43]}  h6 {[%clk 0:01:20]} 27. Rd3 {[%clk 0:01:38]}  Re6 {[%clk 0:01:03]} 28. Rg3 {[%clk 0:01:34]}  Rce8 {[%clk 0:01:01]} 29. Qd1 {[%clk 0:01:21]}  Qf5 {[%clk 0:00:53]} 30. a4 {[%clk 0:01:19]}  a6 {[%clk 0:00:53]} 31. Qb3 {[%clk 0:01:17]}  e4 {[%clk 0:00:48]} 32. b5 {[%clk 0:01:16]}  axb5 {[%clk 0:00:48]} 33. axb5 {[%clk 0:01:16]}  Rb8 {[%clk 0:00:49]} 34. Qc4 {[%clk 0:01:11]}  Rxb5 {[%clk 0:00:47]} 35. Qxd4 {[%clk 0:01:11]}  Qe5 {[%clk 0:00:42]} 36. Qxe5 {[%clk 0:01:05]}  Rxe5 {[%clk 0:00:42]} 37. Bxh6 {[%clk 0:01:06]}  g6 {[%clk 0:00:37]} 38. Be3 {[%clk 0:01:05]}  Rd5 {[%clk 0:00:37]} 39. Ra1 {[%clk 0:01:04]}  Rd8 {[%clk 0:00:35]} 40. h4 {[%clk 0:01:00]}  Kh7 {[%clk 0:00:32]} 41. Ra6 {[%clk 0:00:58]}  Rd1+ {[%clk 0:00:29]} 42. Kh2 {[%clk 0:00:58]}  Rbb1 {[%clk 0:00:29]} 43. Rg4 {[%clk 0:00:49]}  Bd7 {[%clk 0:00:21]} 44. Rxe4 {[%clk 0:00:45]}  Rh1+ {[%clk 0:00:21]} 45. Kg3 {[%clk 0:00:44]}  Rbg1 {[%clk 0:00:22]} 46. f3 {[%clk 0:00:27]}  Bh3 {[%clk 0:00:17]} 47. Ra2 {[%clk 0:00:26]}  Be6 {[%clk 0:00:15]} 48. Bxg1 {[%clk 0:00:26]}  Bxa2 {[%clk 0:00:15]} 49. Kf2 {[%clk 0:00:25]}  Bd5 {[%clk 0:00:14]} 50. Rd4 {[%clk 0:00:25]}  Bc6 {[%clk 0:00:14]} 51. Rd6 {[%clk 0:00:25]}  Bb5 {[%clk 0:00:14]} 52. Rb6 {[%clk 0:00:23]}  Be8 {[%clk 0:00:13]} 53. Rb4 {[%clk 0:00:16]}  g5 {[%clk 0:00:12]} 54. hxg5 {[%clk 0:00:16]}  Kg6 {[%clk 0:00:13]} 55. f4 {[%clk 0:00:15]}  Bc6 {[%clk 0:00:13]} 56. g4 {[%clk 0:00:14]}  Bd5 {[%clk 0:00:11]} 57. Rd4 {[%clk 0:00:14]}  Ba8 {[%clk 0:00:09]} 58. c6 {[%clk 0:00:14]}  Rh8 {[%clk 0:00:09]} 59. c7 {[%clk 0:00:13]}  Rc8 {[%clk 0:00:08]} 60. Rd6+ {[%clk 0:00:13]}  Kh7 {[%clk 0:00:08]} 61. Rd8 {[%clk 0:00:13]}  Rxc7 {[%clk 0:00:07]} 62. Rxa8 {[%clk 0:00:14]} 1-0


[Site "https://www.chess.com"]

[Event "Titled Tuesday Blitz May 31 Late 2022"]
[White "Bibasa, Bob"]
[Black "Tristan, Leonardo"]
[WhiteFideId "10000240"]
[BlackFideId "113816"]
[WhiteElo "2032"]
[BlackElo "2404"]
[Result "0-1"]
[Round "06"]
[TimeControl "180+1"]
[Date "2022.06.01"]
[WhiteClock "0:00:03"]
[BlackClock "0:00:15"]

1. e4 {[%clk 0:03:00]}  d5 {[%clk 0:03:00]} 2. exd5 {[%clk 0:03:00]}  Qxd5 {[%clk 0:03:01]} 3. Nc3 {[%clk 0:03:00]}  Qa5 {[%clk 0:03:01]} 4. d4 {[%clk 0:03:00]}  Nf6 {[%clk 0:03:01]} 5. Nf3 {[%clk 0:03:00]}  Bf5 {[%clk 0:03:01]} 6. Bd3 {[%clk 0:02:57]}  Nbd7 {[%clk 0:03:00]} 7. O-O {[%clk 0:02:52]}  e6 {[%clk 0:02:56]} 8. a3 {[%clk 0:02:49]}  Bxd3 {[%clk 0:02:48]} 9. Qxd3 {[%clk 0:02:49]}  c6 {[%clk 0:02:49]} 10. Bf4 {[%clk 0:02:46]}  Be7 {[%clk 0:02:49]} 11. b4 {[%clk 0:02:45]}  Qh5 {[%clk 0:02:45]} 12. Ne2 {[%clk 0:02:40]}  O-O {[%clk 0:02:41]} 13. Ng3 {[%clk 0:02:39]}  Qg6 {[%clk 0:02:41]} 14. Qxg6 {[%clk 0:02:37]}  hxg6 {[%clk 0:02:41]} 15. Ne5 {[%clk 0:02:33]}  Rfd8 {[%clk 0:02:39]} 16. Rfd1 {[%clk 0:02:30]}  Nd5 {[%clk 0:02:28]} 17. Bd2 {[%clk 0:02:20]}  N5b6 {[%clk 0:02:18]} 18. Bc3 {[%clk 0:02:07]}  Na4 {[%clk 0:02:00]} 19. Be1 {[%clk 0:02:06]}  Nb2 {[%clk 0:01:54]} 20. Rdb1 {[%clk 0:02:05]}  Nxe5 {[%clk 0:01:53]} 21. dxe5 {[%clk 0:01:55]}  Nc4 {[%clk 0:01:52]} 22. f4 {[%clk 0:01:54]}  g5 {[%clk 0:01:43]} 23. fxg5 {[%clk 0:01:54]}  Bxg5 {[%clk 0:01:43]} 24. Bc3 {[%clk 0:01:47]}  Be3+ {[%clk 0:01:43]} 25. Kh1 {[%clk 0:01:47]}  Bd2 {[%clk 0:01:35]} 26. Bxd2 {[%clk 0:01:40]}  Rxd2 {[%clk 0:01:34]} 27. c3 {[%clk 0:01:35]}  Nxe5 {[%clk 0:01:34]} 28. Rd1 {[%clk 0:01:34]}  Rad8 {[%clk 0:01:34]} 29. Rxd2 {[%clk 0:01:33]}  Rxd2 {[%clk 0:01:34]} 30. Ne4 {[%clk 0:01:30]}  Rc2 {[%clk 0:01:34]} 31. h3 {[%clk 0:01:27]}  b6 {[%clk 0:01:26]} 32. a4 {[%clk 0:01:22]}  Kf8 {[%clk 0:01:22]} 33. a5 {[%clk 0:01:19]}  b5 {[%clk 0:01:19]} 34. a6 {[%clk 0:01:18]}  Ke7 {[%clk 0:01:20]} 35. Re1 {[%clk 0:01:13]}  Nd3 {[%clk 0:01:11]} 36. Rf1 {[%clk 0:00:59]}  f5 {[%clk 0:01:09]} 37. Ng5 {[%clk 0:00:57]}  Rxc3 {[%clk 0:01:09]} 38. g4 {[%clk 0:00:52]}  g6 {[%clk 0:01:03]} 39. gxf5 {[%clk 0:00:47]}  exf5 {[%clk 0:00:57]} 40. Rf3 {[%clk 0:00:42]}  Rc1+ {[%clk 0:00:51]} 41. Kh2 {[%clk 0:00:41]}  Nxb4 {[%clk 0:00:52]} 42. Re3+ {[%clk 0:00:39]}  Kd7 {[%clk 0:00:42]} 43. Re6 {[%clk 0:00:36]}  Rc2+ {[%clk 0:00:36]} 44. Kg3 {[%clk 0:00:36]}  Rc3+ {[%clk 0:00:37]} 45. Kg2 {[%clk 0:00:21]}  Nd5 {[%clk 0:00:35]} 46. Re1 {[%clk 0:00:12]}  Ra3 {[%clk 0:00:32]} 47. Nf3 {[%clk 0:00:10]}  Nf4+ {[%clk 0:00:28]} 48. Kg3 {[%clk 0:00:10]}  Nxh3 {[%clk 0:00:25]} 49. Rd1+ {[%clk 0:00:08]}  Kc7 {[%clk 0:00:24]} 50. Re1 {[%clk 0:00:07]}  Ng5 {[%clk 0:00:24]} 51. Re7+ {[%clk 0:00:07]}  Kb6 {[%clk 0:00:24]} 52. Kf4 {[%clk 0:00:04]}  Nxf3 {[%clk 0:00:23]} 53. Rb7+ {[%clk 0:00:04]}  Kc5 {[%clk 0:00:15]} 54. Rxa7 {[%clk 0:00:03]}  Nd4 {[%clk 0:00:15]} 0-1


[Site "https://www.chess.com"]

[Event "Titled Tuesday Blitz May 31 Late 2022"]
[White "Bilan, Danila"]
[Black "Rychagov, Andrey"]
[WhiteFideId "24161918"]
[BlackFideId "4119932"]
[WhiteElo "2164"]
[BlackElo "2500"]
[Result "0-1"]
[Round "06"]
[TimeControl "180+1"]
[Date "2022.06.01"]
[WhiteClock "0:00:07"]
[BlackClock "0:00:39"]

1. d4 {[%clk 0:03:00]}  f5 {[%clk 0:02:23]} 2. Nf3 {[%clk 0:02:57]}  Nf6 {[%clk 0:02:22]} 3. g3 {[%clk 0:02:56]}  g6 {[%clk 0:02:23]} 4. Bg2 {[%clk 0:02:57]}  Bg7 {[%clk 0:02:23]} 5. O-O {[%clk 0:02:58]}  O-O {[%clk 0:02:23]} 6. c4 {[%clk 0:02:59]}  d6 {[%clk 0:02:24]} 7. Nc3 {[%clk 0:02:55]}  Qe8 {[%clk 0:02:24]} 8. d5 {[%clk 0:02:45]}  a5 {[%clk 0:02:23]} 9. Qc2 {[%clk 0:02:42]}  Na6 {[%clk 0:02:23]} 10. b3 {[%clk 0:02:41]}  Nc5 {[%clk 0:02:20]} 11. Bb2 {[%clk 0:02:39]}  Bd7 {[%clk 0:02:20]} 12. Rad1 {[%clk 0:02:33]}  c6 {[%clk 0:02:19]} 13. Nd4 {[%clk 0:02:27]}  Rc8 {[%clk 0:02:17]} 14. Qb1 {[%clk 0:02:07]}  Qf7 {[%clk 0:02:17]} 15. a3 {[%clk 0:01:59]}  Nce4 {[%clk 0:01:56]} 16. Nxe4 {[%clk 0:01:49]}  Nxe4 {[%clk 0:01:56]} 17. f3 {[%clk 0:01:49]}  Nf6 {[%clk 0:01:45]} 18. e4 {[%clk 0:01:44]}  fxe4 {[%clk 0:01:44]} 19. fxe4 {[%clk 0:01:43]}  Qe8 {[%clk 0:01:44]} 20. h3 {[%clk 0:01:32]}  Nh5 {[%clk 0:01:37]} 21. Kh2 {[%clk 0:01:29]}  e5 {[%clk 0:01:16]} 22. Ne2 {[%clk 0:00:56]}  Qe7 {[%clk 0:01:13]} 23. Bc1 {[%clk 0:00:50]}  cxd5 {[%clk 0:01:08]} 24. Rxf8+ {[%clk 0:00:28]}  Rxf8 {[%clk 0:01:06]} 25. Rxd5 {[%clk 0:00:28]}  Rf2 {[%clk 0:00:58]} 26. Be3 {[%clk 0:00:28]}  Rxe2 {[%clk 0:00:56]} 27. Bg1 {[%clk 0:00:21]}  Bc6 {[%clk 0:00:53]} 28. Qd1 {[%clk 0:00:19]}  Nxg3 {[%clk 0:00:49]} 29. Rxd6 {[%clk 0:00:14]}  Bxe4 {[%clk 0:00:45]} 30. Rd8+ {[%clk 0:00:14]}  Bf8 {[%clk 0:00:44]} 31. Rxf8+ {[%clk 0:00:07]}  Qxf8 {[%clk 0:00:39]} 0-1


[Site "https://www.chess.com"]